{"text_format":"3","workbook":"xlsx","n_sheets":8,"sheets":["Anvisningar","Regelbundna kunder","Tillfälliga bekantskaper","Potentiella kunder","Q1-nätverksplan","Q2-nätverksplan","Q3-nätverksplan","Q4-nätverksplan"],"not_rendered":{"defined_names":7},"read":"whole","date_system":"1900"}

{"sheet":"Anvisningar","index":0,"n_rows":17,"n_cols":5,"rows_kept":17,"merged":[[0,0,0,2],[1,1,1,6],[2,1,2,6],[3,1,3,6],[4,1,4,6],[5,1,5,6],[6,1,6,6],[7,1,7,6],[8,1,8,6],[9,1,9,6],[10,1,10,6],[11,1,11,6]]}
["Touch Base-spårare",null,null,"Anvisningar"]
[null,"1. Bestäm vilken kategori din kontakt tillhör:"]
[null,"• Regelbundna kunder – personer som du vill hålla kontakten med regelbundet"]
[null,"• Tillfälliga bekantskaper – personer som du vill höra av dig till några gånger om året"]
[null,"• Potentiella kunder – personer/företag som du vill lagra för att kunna ta kontakt med när tillfälle ges"]
[null,"2. Öppna motsvarande kalkylbladsflik."]
[null,"3. För in deras information (om du vill skapa en ny rad i en cell trycker du på Alt + Retur i Windows eller Alt [Option] + Retur på en Mac)."]
[null,"Här hittar du nya radinstruktioner för Excel-mobilappar."]
[null,"4. I kolumnen Uppföljningsdatum tar du bort exempeldatum/formel och anger när du vill kontakta dem. \nTryck sedan på Retur."]
[null,"5. Kolumnen Uppföljningsdatum blir röd när datumet är mycket nära, gul när det närmar sig och \ngrön när du har gott om tid."]
[null,"6. När uppföljningsdatumet närmar sig ändras färgen i enlighet med detta."]
[null,"7. När du har kontaktat din kontakt skriver du JA i kolumnen Klar? Då blir datumet nedtonad. "]
[null,"8. Om du vill kontakta dem igen ersätter du JA med NEJ och skriver ett nytt Uppföljningsdatum."]
[null,null,"Röd","Gul","Grön"]
[null,"Regelbundna kunder","1–3 dagar kvar","4–7 dagar kvar","8–14+ dagar kvar"]
[null,"Tillfälliga bekantskaper","1–7 dagar kvar","8–45 dagar kvar","46-90+ dagar kvar"]
[null,"Potentiella kunder","1–14 dagar kvar","15–60 dagar kvar","60–120+ dagar kvar"]

{"sheet":"Regelbundna kunder","index":1,"n_rows":7,"n_cols":8,"rows_kept":7,"merged":[[0,0,0,2]]}
["Touch Base-spårare",null,null,"Regelbundna kunder"]
[]
["Namn","Företag","Kontaktinformation","Var vi träffades","Anteckningar","Uppföljningsdatum","Klart","Anteckningar från konversationen"]
["Garth Fort","Adventure Works","Projektledare\ngarth@adventure-works.com\n(234) 555-0134\nadventure-works.com\nlinkedin.com/in/garth-fort","Mässa 2010","Fråga om dottern Sandy och hur det går med ombyggnaden. Gillar inte stora grupper och stark mat.",{"$f":"TODAY()+8","v":"2021-07-20"},"NEJ"]
["Namn","Företagsnamn","Befattning\nE-postadress\nTelefonnummer\nWebbplats\nLänkar till sociala profiler\n","Plats","Skriv in eventuella anteckningar som du vill komma ihåg om den här personen, som var ni träffades, vad ni pratade om, vad du vill ta upp nästa gång ni pratar osv.",{"$f":"TODAY()-3","v":"2021-07-09"},"JA"]
["Namn","Företagsnamn","Befattning\nE-postadress\nTelefonnummer\nWebbplats\nLänkar till sociala profiler\n","Plats","Skriv in eventuella anteckningar som du vill komma ihåg om den här personen, som var ni träffades, vad ni pratade om, vad du vill ta upp nästa gång ni pratar osv.",{"$f":"TODAY()+-3","v":"2021-07-09"},"NEJ"]
["Namn","Företagsnamn","Befattning\nE-postadress\nTelefonnummer\nWebbplats\nLänkar till sociala profiler\n","Plats","Skriv in eventuella anteckningar som du vill komma ihåg om den här personen, som var ni träffades, vad ni pratade om, vad du vill ta upp nästa gång ni pratar osv.",{"$f":"TODAY()+6","v":"2021-07-18"},"NEJ"]

{"sheet":"Tillfälliga bekantskaper","index":2,"n_rows":7,"n_cols":8,"rows_kept":7,"merged":[[0,0,0,2]]}
["Touch Base-spårare",null,null,"Tillfälliga bekantskaper"]
[]
["Namn","Företag","Kontaktinformation","Var vi träffades","Anteckningar","Uppföljningsdatum","Klart","Anteckningar från konversationen"]
["Garth Fort","Adventure Works","Resursförvaltare\ngarth@adventure-works.com\n(434) 555-0123\nwww.adventure-works.com\nlinkedin.com/in/garth-fort","Semester in Vermont 2016","Praktisk som kontakt för uthyrning och för marknadsföringsfrågor",{"$f":"TODAY()+90","v":"2021-10-10"},"NEJ"]
["Namn","Företagsnamn","Befattning\nE-postadress\nTelefonnummer\nWebbplats\nLänkar till sociala profiler\n","Plats","Skriv in eventuella anteckningar som du vill komma ihåg om den här personen, som var ni träffades, vad ni pratade om, vad du vill ta upp nästa gång ni pratar osv.",{"$f":"TODAY()-3","v":"2021-07-09"},"JA"]
["Namn","Företagsnamn","Befattning\nE-postadress\nTelefonnummer\nWebbplats\nLänkar till sociala profiler\n","Plats","Skriv in eventuella anteckningar som du vill komma ihåg om den här personen, som var ni träffades, vad ni pratade om, vad du vill ta upp nästa gång ni pratar osv.",{"$f":"TODAY()+-3","v":"2021-07-09"},"NEJ"]
["Namn","Företagsnamn","Befattning\nE-postadress\nTelefonnummer\nWebbplats\nLänkar till sociala profiler\n","Plats","Skriv in eventuella anteckningar som du vill komma ihåg om den här personen, som var ni träffades, vad ni pratade om, vad du vill ta upp nästa gång ni pratar osv.",{"$f":"TODAY()+40","v":"2021-08-21"},"NEJ"]

{"sheet":"Potentiella kunder","index":3,"n_rows":7,"n_cols":8,"rows_kept":7,"merged":[[0,0,0,2]]}
["Touch Base-spårare",null,null,"Potentiella kunder"]
[]
["Namn","Företag","Kontaktinformation","Var vi träffades","Anteckningar","Uppföljningsdatum","Klart","Anteckningar från konversationen"]
["Garth Fort","Frilansare","Designer\nnågon@exempel.com\n425-555-0123\nexempel.com\nlinkedin.com/in/garth-fort","Sonens examen 2016","Nyexaminerad – mycket skicklig. Kan vara användbar för framtida klienter.",{"$f":"TODAY()+89","v":"2021-10-09"},"NEJ"]
["Namn","Företagsnamn","Befattning\nE-postadress\nTelefonnummer\nWebbplats\nLänkar till sociala profiler\n","Plats","Skriv in eventuella anteckningar som du vill komma ihåg om den här personen, som var ni träffades, vad ni pratade om, vad du vill ta upp nästa gång ni pratar osv.",{"$f":"TODAY()-3","v":"2021-07-09"},"JA"]
["Namn","Företagsnamn","Befattning\nE-postadress\nTelefonnummer\nWebbplats\nLänkar till sociala profiler\n","Plats","Skriv in eventuella anteckningar som du vill komma ihåg om den här personen, som var ni träffades, vad ni pratade om, vad du vill ta upp nästa gång ni pratar osv.",{"$f":"TODAY()+-3","v":"2021-07-09"},"NEJ"]
["Namn","Företagsnamn","Befattning\nE-postadress\nTelefonnummer\nWebbplats\nLänkar till sociala profiler\n","Plats","Skriv in eventuella anteckningar som du vill komma ihåg om den här personen, som var ni träffades, vad ni pratade om, vad du vill ta upp nästa gång ni pratar osv.",{"$f":"TODAY()+30","v":"2021-08-11"},"NEJ"]

{"sheet":"Q1-nätverksplan","index":4,"n_rows":20,"n_cols":6,"rows_kept":20,"merged":[[0,0,0,3],[2,0,2,3],[4,0,4,3],[14,5,17,5],[18,0,18,3]]}
["Expansionsplan för nätverk"]
["Anvisningar"]
["Skriv in hur du planerar att utöka nätverket det här kvartalet (dvs. ringa fler telefonsamtal, resa mer osv.). Varje gång du får en ny kontakt ändrar du numret för Faktiska kontakter som skapats för att hålla reda på hur nära målet du är."]
[]
["Hur jag planerar att expandera mitt nätverk det här kvartalet"]
["1. Ringa fler telefonsamtal"]
["2. Resa mer"]
[]
[]
[]
[]
[]
[]
["Kvartalsmål för kontakter","Måldatum","Faktiska kvartalskontakter som skapats","Resultat"]
[20,{"$f":"TODAY()","v":"2021-07-12"},12,{"$f":"IF(tblGoals[[#This Row],[Kvartalsmål för kontakter]]>0,tblGoals[[#This Row],[Faktiska kvartalskontakter som skapats]]/tblGoals[[#This Row],[Kvartalsmål för kontakter]],\"\")","v":{"v":0.6,"d":"60%"}},null,"0 % – 25 %\n26 % – 50 %\n51 % – 75 %\n76 % – 100 %\n\nFärgerna ändras baserat på uppnått antal procent"]
[{"$nulls":3},{"$f":"IF(tblGoals[[#This Row],[Kvartalsmål för kontakter]]>0,tblGoals[[#This Row],[Faktiska kvartalskontakter som skapats]]/tblGoals[[#This Row],[Kvartalsmål för kontakter]],\"\")","v":""}]
[{"$nulls":3},{"$f":"IF(tblGoals[[#This Row],[Kvartalsmål för kontakter]]>0,tblGoals[[#This Row],[Faktiska kvartalskontakter som skapats]]/tblGoals[[#This Row],[Kvartalsmål för kontakter]],\"\")","v":""}]
[]
["Reflektion över resultatet/Anteckningar för förbättring"]
["Kom nära. Prova att ringa runt lunch i stället."]

{"sheet":"Q2-nätverksplan","index":5,"n_rows":20,"n_cols":6,"rows_kept":20,"merged":[[0,0,0,3],[2,0,2,3],[4,0,4,3],[14,5,17,5],[18,0,18,3]]}
["Expansionsplan för nätverk"]
["Anvisningar"]
["Skriv in hur du planerar att utöka nätverket det här kvartalet (dvs. ringa fler telefonsamtal, resa mer osv.). Varje gång du får en ny kontakt ändrar du numret för Faktiska kontakter som skapats för att hålla reda på hur nära målet du är."]
[]
["Hur jag planerar att expandera mitt nätverk det här kvartalet"]
["1. Ringa fler telefonsamtal"]
["2. Resa mer"]
[]
[]
[]
[]
[]
[]
["Kvartalsmål för kontakter","Måldatum","Faktiska kvartalskontakter som skapats","Resultat"]
[20,{"$f":"TODAY()","v":"2021-07-12"},12,{"$f":"IF(tblGoals3[[#This Row],[Kvartalsmål för kontakter]]>0,tblGoals3[[#This Row],[Faktiska kvartalskontakter som skapats]]/tblGoals3[[#This Row],[Kvartalsmål för kontakter]],\"\")","v":{"v":0.6,"d":"60%"}},null,"0 % – 25 %\n26 % – 50 %\n51 % – 75 %\n76 % – 100 %\n\nFärgerna ändras baserat på uppnått antal procent"]
[{"$nulls":3},{"$f":"IF(tblGoals3[[#This Row],[Kvartalsmål för kontakter]]>0,tblGoals3[[#This Row],[Faktiska kvartalskontakter som skapats]]/tblGoals3[[#This Row],[Kvartalsmål för kontakter]],\"\")","v":""}]
[{"$nulls":3},{"$f":"IF(tblGoals3[[#This Row],[Kvartalsmål för kontakter]]>0,tblGoals3[[#This Row],[Faktiska kvartalskontakter som skapats]]/tblGoals3[[#This Row],[Kvartalsmål för kontakter]],\"\")","v":""}]
[]
["Reflektion över resultatet/Anteckningar för förbättring"]
["Kom nära. Prova att ringa runt lunch i stället."]

{"sheet":"Q3-nätverksplan","index":6,"n_rows":20,"n_cols":6,"rows_kept":20,"merged":[[0,0,0,3],[2,0,2,3],[4,0,4,3],[14,5,17,5],[18,0,18,3]]}
["Expansionsplan för nätverk"]
["Anvisningar"]
["Skriv in hur du planerar att utöka nätverket det här kvartalet (dvs. ringa fler telefonsamtal, resa mer osv.). Varje gång du får en ny kontakt ändrar du numret för Faktiska kontakter som skapats för att hålla reda på hur nära målet du är."]
[]
["Hur jag planerar att expandera mitt nätverk det här kvartalet"]
["1. Ringa fler telefonsamtal"]
["2. Resa mer"]
[]
[]
[]
[]
[]
[]
["Kvartalsmål för kontakter","Måldatum","Faktiska kvartalskontakter som skapats","Resultat"]
[20,{"$f":"TODAY()","v":"2021-07-12"},12,{"$f":"IF(tblGoals34[[#This Row],[Kvartalsmål för kontakter]]>0,tblGoals34[[#This Row],[Faktiska kvartalskontakter som skapats]]/tblGoals34[[#This Row],[Kvartalsmål för kontakter]],\"\")","v":{"v":0.6,"d":"60%"}},null,"0 % – 25 %\n26 % – 50 %\n51 % – 75 %\n76 % – 100 %\n\nFärgerna ändras baserat på uppnått antal procent"]
[{"$nulls":3},{"$f":"IF(tblGoals34[[#This Row],[Kvartalsmål för kontakter]]>0,tblGoals34[[#This Row],[Faktiska kvartalskontakter som skapats]]/tblGoals34[[#This Row],[Kvartalsmål för kontakter]],\"\")","v":""}]
[{"$nulls":3},{"$f":"IF(tblGoals34[[#This Row],[Kvartalsmål för kontakter]]>0,tblGoals34[[#This Row],[Faktiska kvartalskontakter som skapats]]/tblGoals34[[#This Row],[Kvartalsmål för kontakter]],\"\")","v":""}]
[]
["Reflektion över resultatet/Anteckningar för förbättring"]
["Kom nära. Prova att ringa runt lunch i stället."]

{"sheet":"Q4-nätverksplan","index":7,"n_rows":20,"n_cols":6,"rows_kept":20,"merged":[[0,0,0,3],[2,0,2,3],[4,0,4,3],[14,5,17,5],[18,0,18,3]]}
["Expansionsplan för nätverk"]
["Anvisningar"]
["Skriv in hur du planerar att utöka nätverket det här kvartalet (dvs. ringa fler telefonsamtal, resa mer osv.). Varje gång du får en ny kontakt ändrar du numret för Faktiska kontakter som skapats för att hålla reda på hur nära målet du är."]
[]
["Hur jag planerar att expandera mitt nätverk det här kvartalet"]
["1. Ringa fler telefonsamtal"]
["2. Resa mer"]
[]
[]
[]
[]
[]
[]
["Kvartalsmål för kontakter","Måldatum","Faktiska kvartalskontakter som skapats","Resultat"]
[20,{"$f":"TODAY()","v":"2021-07-12"},12,{"$f":"IF(tblGoals348[[#This Row],[Kvartalsmål för kontakter]]>0,tblGoals348[[#This Row],[Faktiska kvartalskontakter som skapats]]/tblGoals348[[#This Row],[Kvartalsmål för kontakter]],\"\")","v":{"v":0.6,"d":"60%"}},null,"0 % – 25 %\n26 % – 50 %\n51 % – 75 %\n76 % – 100 %\n\nFärgerna ändras baserat på uppnått antal procent"]
[{"$nulls":3},{"$f":"IF(tblGoals348[[#This Row],[Kvartalsmål för kontakter]]>0,tblGoals348[[#This Row],[Faktiska kvartalskontakter som skapats]]/tblGoals348[[#This Row],[Kvartalsmål för kontakter]],\"\")","v":""}]
[{"$nulls":3},{"$f":"IF(tblGoals348[[#This Row],[Kvartalsmål för kontakter]]>0,tblGoals348[[#This Row],[Faktiska kvartalskontakter som skapats]]/tblGoals348[[#This Row],[Kvartalsmål för kontakter]],\"\")","v":""}]
[]
["Reflektion över resultatet/Anteckningar för förbättring"]
["Kom nära. Prova att ringa runt lunch i stället."]